[Event "1st Caplin Menchik Memorial 2022"]
[Site "London"]
[Date "2022.06.26"]
[Round "9.2"]
[White "Schulze, Lara"]
[Black "Koubova, Anna Marie"]
[Result "1-0"]
[ECO "B10"]
[WhiteElo "2303"]
[BlackElo "2115"]
[Annotator "TA"]
[PlyCount "105"]
[EventDate "2022.06.21"]
[EventType "tourn"]
[EventCountry "ENG"]
[SourceTitle "playchess.com"]
[Source "ChessBase"]
[SourceQuality "1"]
[TimeControl "5400+30"]

{[%evp 9,105,-6,28,12,30,27,32,0,4,0,12,-35,-26,-25,-20,-35,-29,-36,-14,-17,12,13,20,17,41,16,10,18,25,29,28,24,26,26,25,20,59,41,134,123,127,128,137,114,114,114,142,145,177,162,188,174,185,172,218,212,220,212,217,218,236,212,224,195,222,209,307,306,348,302,385,289,373,339,340,347,427,429,513,495,429,390,389,347,401,395,617,561,658,638,652,583,651,560,600,535,696,489]} 1. e4 {[%emt 0:00:10]} c6 {[%emt 0:00:28]} 2. Nf3 {[%emt 0:00:09]} d5 {[%emt 0:00:36]} 3. d3 {[%emt 0:00:08]} dxe4 {[%emt 0:03:46]} 4. dxe4 {[%emt 0:00:09]} Qxd1+ {[%emt 0:00:10]} 5. Kxd1 {[%emt 0:00:05]} Bg4 {[%emt 0:02:24]} (5... Nf6 $5 {[%cal Rf6e4]}) 6. Be2 {[%emt 0:00:15] B10: Caro-Kann: 2 d3 and 2 c4.} Nd7 {[%emt 0:01:04]} 7. Ne1 {[%emt 0:02:19]} Be6 {[%emt 0:08:18] [#]} 8. Be3 $146 {[%emt 0:10:08] White is slightly better.} ({Predecessor:} 8. Nd2 g5 9. Bc4 Nc5 10. Bxe6 Nxe6 11. c3 Nf6 12. Kc2 Bg7 13. Nd3 Nd7 14. Nc4 {1-0 (50) Sarana,A (2640)-Voit,D (2354) Anapa 2021}) 8... f5 {[%emt 0:07:00]} 9. Nd2 {[%emt 0:06:47]} Ngf6 {[%emt 0:02:35]} 10. Nef3 {[%emt 0:13:52]} (10. exf5 $11 Bxf5 11. Bd3) 10... fxe4 $15 {[%emt 0:04:59]} 11. Ng5 {[%emt 0:02:18][%csl LRe4,LRe6][%cal Bf3g5,Bg5e6,Be6c5][%mdl 32]} Bf5 {[%emt 0:03:25] Threatens to win with ...h6.} 12. Bc4 {[%emt 0:02:21]} Ne5 {[%emt 0:03:37] Prevents Bf7+.} 13. Bb3 {[%emt 0:03:29]} Nd5 {[%emt 0:03:34]} 14. h3 {[%emt 0:04:18]} Nxe3+ {[%emt 0:20:22]} 15. fxe3 {[%emt 0:00:14]} h6 {[%emt 0:00:27]} (15... g6 {is interesting.} 16. Ke2 O-O-O 17. g4 Bh6) 16. Ne6 {[%emt 0:08:31]} Kd7 {[%emt 0:01:56] Against Nc7} 17. Nc5+ {[%emt 0:05:24] Pair of Knights!} Kc7 {[%emt 0:00:40]} 18. Rf1 {[%emt 0:02:00]} e6 {[%emt 0:03:52]} 19. Nxe6+ {[%emt 0:08:17]} Bxe6 {[%emt 0:00:15]} 20. Bxe6 {[%emt 0:00:02]} Bc5 {[%emt 0:06:33]} 21. Ke2 {[%emt 0:00:35]} Rhe8 {[%emt 0:00:41]} 22. Bb3 {[%emt 0:01:45]} Bb6 {[%emt 0:01:31]} 23. Nc4 {[%emt 0:02:37]} Nxc4 {[%emt 0:04:45] [#] White stays focused until the end.} (23... Bc5 $14) 24. Rf7+ $1 $16 {[%emt 0:01:01]} Kd6 {[%emt 0:08:13]} 25. Bxc4 {[%emt 0:00:48]} Rf8 {[%emt 0:00:27]} 26. Raf1 {[%emt 0:03:06]} Rxf7 {[%emt 0:00:59]} 27. Rxf7 {[%emt 0:00:02][%mdl 4096] Endgame KRB-KRB} Kc5 {[%emt 0:00:42]} 28. Bb3 {[%emt 0:00:59] White is more active.} Bd8 {[%emt 0:00:24]} 29. Rxg7 {[%emt 0:03:13]} Bf6 {[%emt 0:00:22]} 30. Rxb7 {[%emt 0:00:46]} Bxb2 {[%emt 0:00:17]} 31. Re7 {[%emt 0:00:36] Prevents Be5.} Bc1 {[%emt 0:01:20]} (31... a5 $142 32. Rxe4 Rd8) 32. Rxe4 $18 {[%emt 0:01:49]} Rd8 {[%emt 0:00:27]} 33. Re5+ {[%emt 0:03:16]} Kb4 {[%emt 0:01:05]} 34. Re6 {[%emt 0:02:57][%csl LRc6,LRh6]} c5 {[%emt 0:00:23]} 35. Re4+ {[%emt 0:03:30]} Kb5 {[%emt 0:00:20]} 36. Bc4+ {[%emt 0:04:39]} Kb4 {[%emt 0:00:34]} 37. Bd5+ {[%emt 0:00:46]} Kb5 {[%emt 0:00:48]} (37... Ka3 {might work better.}) 38. c4+ {[%emt 0:00:39]} Kb4 {[%emt 0:00:19]} 39. Re6 {[%emt 0:00:27]} a5 {[%emt 0:01:28]} 40. Rxh6 {[%emt 0:01:52]} Ka3 {[%emt 0:00:51]} 41. Ra6 {[%emt 0:00:32]} a4 {[%emt 0:00:29]} 42. Bc6 {[%emt 0:02:56] Against Re8} Rd2+ {[%emt 0:00:52]} 43. Kf3 {[%emt 0:00:12]} Kxa2 {[%emt 0:00:18]} 44. Bxa4 {[%emt 0:00:22]} Kb2 {[%emt 0:01:00]} 45. Bb5 {[%emt 0:00:19] Strongly threatening h4.} Rd1 {[%emt 0:00:40]} 46. Re6 {[%emt 0:00:41]} Rf1+ {[%emt 0:00:27]} 47. Ke2 {[%emt 0:00:24]} Rf8 {[%emt 0:00:42]} (47... Rg1 $142 48. Kf2 Rd1) 48. Bc6 {[%emt 0:00:31] White is clearly winning.} Kc3 {[%emt 0:00:19]} 49. Bd5 {[%emt 0:00:08]} Bb2 {[%emt 0:00:33]} 50. Re4 {[%emt 0:00:52]} Rf6 {[%emt 0:00:24]} 51. Rf4 {[%emt 0:00:31]} Rg6 {[%emt 0:03:23]} 52. h4 {[%emt 0:00:24]} Kb4 {[%emt 0:00:11]} 53. g4 {[%emt 0:00:30] Weighted Error Value: White=0.10 (very precise) /Black=0.34} 1-0

[Event "1st Caplin Menchik Memorial 2022"]
[Site "London"]
[Date "2022.06.26"]
[Round "9.3"]
[White "Arakhamia-Grant, Ketevan"]
[Black "Vidic, Teja"]
[Result "1-0"]
[ECO "C70"]
[WhiteElo "2354"]
[BlackElo "2168"]
[Annotator "TA"]
[PlyCount "95"]
[EventDate "2022.06.21"]
[EventType "tourn"]
[EventCountry "ENG"]
[SourceTitle "playchess.com"]
[Source "ChessBase"]
[SourceQuality "1"]
[TimeControl "5400+30"]

{[%evp 9,94,22,42,25,33,23,30,32,66,24,24,0,0,0,2,0,0,0,0,0,0,0,-22,-25,18,-18,-8,-8,-17,-42,-58,-90,-7,-6,-13,-31,-32,-30,31,30,22,13,29,33,35,35,66,47,111,96,126,82,202,202,218,209,184,83,116,118,126,129,119,114,165,156,431,456,651,438,1353,1346,1067,726,29988,29987,29987,29988,29988,29989,29989,29990,29997,29998,29998,29999,29999]} 1. e4 {[%emt 0:02:29]} e5 {[%emt 0:00:11]} 2. Nf3 {[%emt 0:00:05]} Nc6 {[%emt 0:00:05]} 3. Bb5 {[%emt 0:00:10]} a6 {[%emt 0:00:14]} 4. Ba4 {[%emt 0:00:06]} b5 {[%emt 0:00:05]} 5. Bb3 {[%emt 0:00:04]} g6 {[%emt 0:00:05]} 6. c3 {[%emt 0:03:44] C70: Ruy Lopez: 3...a6 4 Ba4, Norwegian and Delayed Schliemann.} Bg7 {[%emt 0:00:12]} 7. d4 {[%emt 0:00:29]} exd4 {[%emt 0:00:16]} 8. cxd4 {[%emt 0:00:06] White has an edge.} d6 {[%emt 0:00:38]} 9. h3 {[%emt 0:02:33]} (9. Ng5 $5 {[%cal Rg5f7]} Nh6 10. Bd5 $11) 9... Nge7 {[%emt 0:01:55]} 10. Nc3 {[%emt 0:00:38]} O-O {[%emt 0:00:32]} 11. O-O {[%emt 0:00:20]} Na5 {[%emt 0:00:05]} 12. Bc2 $1 {[%emt 0:00:09]} c5 {[%emt 0:00:05]} 13. Re1 {[%emt 0:23:47]} cxd4 {[%emt 0:01:01]} 14. Nxd4 {[%emt 0:00:38]} Bb7 {[%emt 0:00:09]} 15. Bg5 {[%emt 0:02:22][%cal Oc3d5]} h6 {[%emt 0:00:53]} 16. Bh4 {[%emt 0:00:42][%cal Oc3d5]} Re8 {[%emt 0:00:55]} 17. Nd5 {[%emt 0:09:21]} (17. Nf5 $5) 17... Bxd5 {[%emt 0:00:18]} ({Don't take} 17... g5 18. Nxe7+ Qxe7 19. Bg3 $14) 18. exd5 {[%emt 0:00:08] [#]} Qd7 $146 {[%emt 0:00:25]} ({Predecessor:} 18... Qb6 19. Nf3 Qb7 20. Qe2 Kf8 21. Rad1 Nf5 22. Qd3 Nc4 23. Rxe8+ Rxe8 24. Rb1 Qc7 25. b3 Na3 26. Rc1 Rc8 27. g4 {0-1 (27) Najer,E (2679)-Grischuk,A (2737) Doha 2016}) 19. Rc1 {[%emt 0:04:28]} Rac8 {[%emt 0:03:33]} 20. b4 {[%emt 0:17:59] [#]} Nc4 {[%emt 0:12:12]} ({Black should play} 20... Nxd5 $1 $17 21. Rxe8+ Qxe8) 21. Bxe7 $11 {[%emt 0:04:31]} Rxe7 {[%emt 0:05:02]} 22. Rxe7 {[%emt 0:00:16]} Qxe7 {[%emt 0:00:05]} 23. Nc6 {[%emt 0:00:09]} Qd7 {[%emt 0:12:57]} ({Black should try} 23... Qg5 $11) 24. Bb3 $36 {[%emt 0:00:58][%mdl 2048] White has good play.} Nb6 {[%emt 0:00:46]} 25. a4 {[%emt 0:06:32]} bxa4 {[%emt 0:06:42]} 26. Bxa4 {[%emt 0:00:08][%cal Bb3a4,Ba4c2,Bc2d3][%mdl 32]} Kh7 {[%emt 0:00:23]} 27. Bc2 {[%emt 0:03:55]} Qb7 {[%emt 0:08:24]} 28. Bd3 {[%emt 0:04:42]} Nd7 {[%emt 0:11:14]} (28... Bf6 $14) 29. Qe2 $16 {[%emt 0:05:11]} Nb8 {[%emt 0:00:27][%cal Rb8c6]} 30. Qe4 {[%emt 0:00:26] White is much more active.} Rc7 {[%emt 0:07:58] [#]} (30... f5 $16 31. Qf3 Nd7) 31. h4 $1 $18 {[%emt 0:01:14]} f5 {[%emt 0:02:25]} 32. Qc4 {[%emt 0:02:07][%cal Oh4h5]} h5 {[%emt 0:00:23] [#]} 33. Rc2 {[%emt 0:03:02]} (33. g4 $1 $18 {[%cal Rg4h5] Strongly threatening gxh5.} Nxc6 34. dxc6) 33... Qb6 {[%emt 0:01:32]} 34. g3 {[%emt 0:00:45]} Be5 {[%emt 0:07:42]} 35. Kg2 {[%emt 0:00:10]} Kh6 {[%emt 0:00:27]} 36. Be2 {[%emt 0:00:36]} Nxc6 {[%emt 0:07:55]} (36... Kg7 $16 37. Bf3 Qb5) 37. dxc6 {[%emt 0:00:11]} a5 $2 {[%emt 0:00:50] A mistake that costs the game.} (37... Kg7 $16 38. Bf1 Kh6) 38. b5 {[%emt 0:00:36]} Bd4 {[%emt 0:00:54]} (38... Kh7 $142 39. Rd2 Re7) 39. Bf3 {[%emt 0:01:42]} Bc5 {[%emt 0:00:54]} (39... Be5 $142 40. Rd2 Kh7) 40. Re2 {[%emt 0:00:11][%cal Of3h5] aiming for Bxh5!} Bd4 {[%emt 0:01:16]} 41. Re6 {[%emt 0:00:54] And now Qc1+ would win.} Bxf2 {[%emt 0:02:45]} 42. Qf4+ {[%emt 0:00:20] White mates.} Kh7 {[%emt 0:00:24]} 43. Qg5 {[%emt 0:00:41]} Rg7 {[%emt 0:00:22] [#]} 44. Bxh5 $1 {[%emt 0:00:22][%mdl 512]} Qb8 {[%emt 0:03:04]} 45. Bxg6+ {[%emt 0:00:32]} Kg8 {[%emt 0:00:06]} 46. Bf7+ {[%emt 0:01:35]} Kh8 {[%emt 0:00:47]} 47. Rh6+ {[%emt 0:00:08]} Rh7 {[%emt 0:00:06]} 48. Qf6# {[%emt 0:00:07] Weighted Error Value: White=0.17 (very precise) /Black=0.40} 1-0

[Event "1st Caplin Menchik Memorial 2022"]
[Site "London"]
[Date "2022.06.26"]
[Round "9.4"]
[White "Toma, Katarzyna"]
[Black "Hunt, Harriet V"]
[Result "1/2-1/2"]
[ECO "B13"]
[WhiteElo "2304"]
[BlackElo "2395"]
[Annotator "TA"]
[PlyCount "60"]
[EventDate "2022.06.21"]
[EventType "tourn"]
[EventCountry "ENG"]
[SourceTitle "playchess.com"]
[Source "ChessBase"]
[SourceQuality "1"]
[TimeControl "5400+30"]

{[%evp 16,60,16,14,10,22,24,33,20,7,33,30,33,33,44,33,65,42,67,47,62,22,27,20,77,28,51,32,42,13,22,31,36,31,59,0,0,0,29,0,15,-12,0,-25,-25,-49,-20]} 1. e4 c6 2. d4 d5 3. exd5 cxd5 4. Bd3 Nc6 5. c3 Nf6 6. Ne2 g6 7. O-O Bg7 8. Nd2 O-O 9. Nf3 Bg4 {B13: Caro-Kann: Exchange Variation and Panov-Botvinnik Attack.} 10. Ne5 Nxe5 11. dxe5 Nd7 {[#] White is slightly better.} 12. f4 $146 ({Predecessor:} 12. f3 Be6 13. f4 Nc5 14. Bc2 Qc8 15. Nd4 Bg4 16. Qe1 Ne6 17. Nb3 Nc5 18. h3 Nxb3 19. axb3 {1-0 (62) Krivanek,V (2107)-Laurincova,K (1854) Ricany 2017}) 12... Nc5 13. Be3 Nxd3 14. Qxd3 Bf5 15. Qd2 Qd7 16. Rad1 Rfd8 17. h3 Qa4 18. Nd4 (18. b3 $5 {[%cal Rb3a4]} Qe8 19. g4 $14) 18... Be4 19. a3 Qd7 {[#]} (19... e6 $11 {keeps the balance.}) 20. Qf2 (20. Ne2 $1 $16) 20... Rac8 21. Rd2 a6 22. Qh4 Rc4 23. Ne2 b5 24. Bd4 Qe6 25. b3 (25. g4 $14) 25... Rcc8 $11 26. Ng3 f5 27. Re1 Rd7 28. Nf1 Rdc7 29. Qg3 a5 30. Ra2 Qc6 {Weighted Error Value: White=0.16 (very precise) /Black=0.15 (very precise)} 1/2-1/2

[Event "1st Caplin Menchik Memorial 2022"]
[Site "London"]
[Date "2022.06.26"]
[Round "9.5"]
[White "Hryshchenko, Kamila"]
[Black "Varney, Zoe"]
[Result "1/2-1/2"]
[ECO "C88"]
[WhiteElo "2037"]
[BlackElo "2046"]
[Annotator "NA RC"]
[PlyCount "41"]
[EventDate "2022.06.21"]
[EventType "tourn"]
[EventCountry "ENG"]
[SourceTitle "playchess.com"]
[Source "ChessBase"]
[SourceQuality "1"]
[TimeControl "5400+30"]

1. e4 {[%emt 0:00:19]} e5 {[%emt 0:00:09]} 2. Nf3 {[%emt 0:00:10]} Nc6 {[%emt 0:00:09]} 3. Bb5 {[%emt 0:00:13]} a6 {[%emt 0:00:07]} 4. Ba4 {[%emt 0:01:53]} Nf6 {[%emt 0:00:21]} 5. O-O {[%emt 0:01:07]} Be7 {[%emt 0:00:41]} 6. Re1 {[%emt 0:00:46]} b5 {[%emt 0:00:19]} 7. Bb3 {[%emt 0:00:08]} O-O {[%emt 0:00:10]} 8. a4 {[%emt 0:02:30]} d5 {[%emt 0:02:28]} 9. exd5 {[%emt 0:00:39]} Na5 {[%emt 0:01:02]} 10. Nxe5 {[%emt 0:02:59]} Nxb3 {[%emt 0:01:29]} 11. cxb3 {[%emt 0:01:10]} Bb7 {[%emt 0:00:54]} 12. Nc6 {[%emt 0:01:39]} Bxc6 {[%emt 0:00:19]} 13. dxc6 {[%emt 0:00:09]} Bc5 {[%emt 0:01:08]} 14. d3 {[%emt 0:06:21]} Bxf2+ {[%emt 0:08:20]} 15. Kxf2 {[%emt 0:01:07]} Qd4+ {[%emt 0:00:14]} 16. Kg3 {[%emt 0:01:56]} Rae8 {[%emt 0:02:55]} 17. Rf1 {[%emt 0:03:06]} Qd6+ {[%emt 0:05:22]} 18. Kf2 {[%emt 0:06:42]} Qd4+ {[%emt 0:03:17]} 19. Kg3 {[%emt 0:00:53]} Qd6+ {[%emt 0:02:46]} 20. Kf2 {[%emt 0:00:33]} Qd4+ {[%emt 0:01:59]} 21. Kg3 {[%emt 0:01:32]} 1/2-1/2